bitfinex/quotes_ETHUSD_20250404
["timestamp","ask_amount","ask_price","bid_price","bid_amount"]
[1743790741499,0.1,1811.9,1811.7,6.29673]
[1743790741908,0.1,1811.9,1811.7,0.7772]
[1743790742204,0.1,1811.9,1811.2,11.80514496]
[1743790742205,5.51982,1811.7,1811.4,0.7606]
[1743790742360,4.435079,1811.9,1811.4,0.7606]
[1743790742699,11.0405,1811.6,1811.4,0.7606]
[1743790743071,5.52025,1811.6,1811.4,0.7606]
[1743790743265,5.51969,1811.7,1811.4,0.7606]
[1743790743473,11.591629,1811.7,1811.4,0.7606]
[1743790743702,8.61921,1811.9,1811.4,6.28116]
[1743790744024,8.61921,1811.9,1811.5,5.52016]
[1743790744188,5.61921,1811.9,1811.5,5.52016]
[1743790744392,0.1,1811.9,1811.7,0.8331]
[1743790744596,0.1,1811.9,1811.7,6.40792265]
[1743790744795,0.1,1811.9,1811.7,6.35273]
[1743790745195,0.1,1811.9,1811.7,0.8331]
[1743790746516,0.1,1811.9,1811.7,6.35271]
[1743790746702,0.1,1811.9,1811.7,7.59509424]
[1743790746972,0.1,1811.9,1811.8,5.57455685]
[1743790747170,0.1,1811.9,1811.8,6.26997]
[1743790749307,0.1,1811.9,1811.8,6.32514961]
[1743790750580,5.51647,1812.8,1812.0,5.51863]
[1743790750780,5.51633,1812.8,1812.1,1.310463]
[1743790750981,5.51678,1812.7,1812.3,11.03547]
[1743790751218,5.51678,1812.7,1812.3,5.51763]
[1743790751412,5.51633,1812.8,1812.3,5.51762]
[1743790751586,5.51633,1812.8,1812.4,5.51743]
[1743790751787,5.51704,1812.6,1812.2,5.51813]
[1743790751988,5.51704,1812.6,1812.2,5.51802]
[1743790752212,5.51829,1812.2,1811.8,6.27416]
[1743790752515,6.27256,1812.5,1811.7,1.187253]
[1743790752516,6.2739,1812.1,1811.7,1.187253]
[1743790752680,5.5186,1812.1,1811.7,5.51956]
[1743790752886,5.51876,1812.0,1811.7,5.51956]
[1743790753391,5.5186,1812.1,1810.9,0.7511]
[1743790753392,5.52012,1811.6,1810.9,0.7511]
[1743790753585,0.7901,1812.1,1811.3,6.27169]
[1743790753586,5.51968,1811.7,1811.3,6.27169]
[1743790753787,5.51941,1811.8,1811.4,5.52046]
[1743790754281,9.30886,1812.0,1811.3,6.898859]
[1743790754899,5.52059,1811.4,1811.1,0.8015]
[1743790755179,5.52105,1811.3,1811.1,0.8015]
[1743790755385,5.52105,1811.3,1810.9,5.52191]
[1743790755997,5.52105,1811.3,1811.0,5.52179]
[1743790756194,5.52166,1811.1,1810.8,0.7594]
[1743790756395,5.52204,1811.0,1810.6,6.30906]
[1743790756614,5.52204,1811.0,1810.7,5.5227]
[1743790756785,5.52153,1811.1,1810.7,5.5227]
[1743790756980,5.52123,1811.2,1810.8,6.07462]
[1743790757180,5.52044,1811.5,1811.1,5.52138]
[1743790757382,6.3187,1811.6,1811.2,5.52097]
[1743790757607,5.51993,1811.7,1811.3,5.52071]
[1743790757808,5.51993,1811.7,1811.3,11.04144]
[1743790758008,5.51993,1811.7,1811.3,12.145584]
[1743790758216,5.51993,1811.7,1811.3,6.624854]
[1743790758419,5.52012,1811.6,1811.2,5.52118]
[1743790758716,5.52043,1811.5,1811.1,5.52147]
[1743790758923,5.52012,1811.6,1811.2,5.52106]
[1743790759120,5.51971,1811.7,1811.3,5.52072]
[1743790759422,5.51971,1811.7,1811.4,6.27096]
[1743790759596,5.51971,1811.7,1811.4,7.450128]
[1743790759793,3.0,1811.9,1811.5,5.5201]
[1743790759794,8.51909,1811.9,1811.5,5.5201]
[1743790760008,5.51909,1811.9,1811.5,11.04023]
[1743790760199,5.51909,1811.9,1811.5,5.5201]
[1743790760817,5.51909,1811.9,1811.5,11.04041]
[1743790761016,5.51909,1811.9,1811.5,6.8171678]
[1743790761216,5.51909,1811.9,1811.5,6.8170878]
[1743790761531,5.51909,1811.9,1811.5,5.52009]
[1743790761924,5.51909,1811.9,1811.5,11.04019]
[1743790762223,6.29159,1812.0,1811.6,5.51987]
[1743790762407,3.0,1812.2,1811.5,6.32186]
[1743790762615,5.5189,1812.0,1811.6,5.51979]
[1743790762797,5.5189,1812.0,1811.7,0.551979]
[1743790763119,5.51859,1812.1,1811.7,6.071489]
[1743790763329,3.0,1812.2,1811.8,5.51922]
[1743790763330,11.03656,1812.2,1811.8,5.51922]
[1743790763622,5.51847,1812.1,1811.8,5.51922]
[1743790763817,11.03715,1812.1,1811.7,6.071619]
[1743790764039,5.5188,1812.0,1811.7,6.071619]
[1743790764221,5.51847,1812.1,1811.8,0.6071619]
[1743790764426,5.51888,1812.0,1811.7,6.071619]
[1743790764727,5.51856,1812.1,1811.7,6.071619]
[1743790764923,5.51856,1812.1,1811.7,11.591159]
[1743790765344,5.51856,1812.1,1811.7,6.071519]
[1743790765623,11.03786,1812.0,1811.7,0.551979]
[1743790765810,5.5189,1812.0,1811.6,5.51985]
[1743790766017,5.5189,1812.0,1811.6,11.03965]
[1743790766324,5.5189,1812.0,1811.6,11.0396]
[1743790766507,5.5189,1812.0,1811.6,5.51979]
[1743790766702,5.48922985,1812.1,1811.7,0.551979]
[1743790766916,5.51916,1811.9,1811.5,6.32176]
[1743790767216,5.51916,1811.9,1811.5,11.84187]
[1743790767597,11.0385,1811.9,1811.5,6.32171]
[1743790767814,5.51916,1811.9,1811.5,6.32171]
[1743790768020,11.03771,1812.0,1811.6,5.51996]
[1743790768228,5.51879,1812.0,1811.6,11.671976]
[1743790768633,5.51879,1812.0,1811.7,5.51967]
[1743790768936,11.03774,1812.0,1811.6,11.671866]
[1743790769110,5.51879,1812.0,1811.6,11.671866]
[1743790769310,11.03773,1812.0,1811.6,6.152006]
[1743790769509,5.51879,1812.0,1811.7,5.51967]
[1743790769704,5.92431044,1812.1,1811.7,6.6868376]
[1743790769927,11.44297044,1812.1,1811.7,6.6868376]
[1743790770236,5.5188,1812.0,1811.7,1.1671676]
[1743790770423,5.5188,1812.0,1811.6,11.03974]
[1743790770610,11.0378,1812.0,1811.6,5.51985]
[1743790770807,5.51907,1811.9,1811.5,6.32188]
[1743790771012,5.51991,1811.7,1811.3,6.33178]
[1743790771316,6.28479,1811.9,1811.3,6.33178]
[1743790771317,5.52035,1811.5,1811.3,1.996291]
[1743790771722,5.52059,1811.4,1811.3,1.185291]
[1743790771899,5.51971,1811.7,1811.1,0.8272]
[1743790772099,5.5201,1811.6,1811.2,5.52114]
[1743790772295,5.5201,1811.6,1811.2,5.52104]
[1743790772501,5.5201,1811.6,1811.3,5.52088]
[1743790772711,5.5203,1811.5,1811.2,5.52104]
[1743790772932,5.52084,1811.4,1811.1,0.8272]
[1743790773452,5.52162,1811.1,1810.8,0.55227]
[1743790773628,5.52162,1811.1,1810.8,6.07465]
[1743790773796,5.52162,1811.1,1810.8,0.55227]
[1743790774504,5.52162,1811.1,1810.8,6.07468]
[1743790774704,5.52206,1811.0,1810.7,0.77]
[1743790774944,5.52211,1810.9,1810.7,0.77]
[1743790775101,5.52211,1810.9,1810.5,5.52318]
[1743790775298,12.59683979,1811.2,1810.4,6.3328]
[1743790775299,6.28722,1810.8,1810.4,6.3328]
[1743790775532,5.52283,1810.7,1810.4,0.8092]
[1743790775699,5.52283,1810.7,1810.4,1.442511]
[1743790776439,5.52314,1810.6,1810.2,6.29542]
[1743790776600,5.866,1810.8,1810.2,0.7712]
[1743790776802,5.52221,1810.9,1810.6,0.8096]
[1743790777001,5.52185,1811.0,1810.7,5.52269]
[1743790777212,11.38761,1811.1,1810.7,5.52269]
[1743790777430,11.38761,1811.1,1810.8,5.52232]
[1743790777634,5.93884979,1811.2,1810.8,11.04463]
[1743790777940,5.52176,1811.1,1810.7,6.71375139]
[1743790778105,5.52176,1811.1,1810.7,12.23635139]
[1743790778433,5.52195,1811.0,1810.7,1.19105139]
[1743790778634,5.52176,1811.1,1810.7,6.71363139]
[1743790778809,5.93875979,1811.2,1810.8,5.52235]
[1743790779131,5.52168,1811.1,1810.8,1.22359814]
[1743790779310,5.52123,1811.2,1810.8,5.52228]
[1743790779509,0.8187,1811.5,1811.2,5.52117]
[1743790779711,5.51978,1811.7,1811.3,5.57610059]
[1743790780035,5.51978,1811.7,1811.4,0.8139]
[1743790780230,5.51978,1811.7,1811.4,1.447363]
[1743790780805,11.03908,1811.8,1811.4,6.967823]
[1743790781011,0.8187,1811.9,1811.5,5.52006]
[1743790781012,6.33781,1811.9,1811.5,5.52006]
[1743790781211,5.51847,1812.1,1811.7,5.51949]
[1743790781428,5.51847,1812.1,1811.7,6.07695859]
[1743790782212,11.03713,1812.1,1811.7,6.07695859]
[1743790782397,5.51908,1811.9,1811.5,5.52025]
[1743790782601,11.03838,1811.9,1811.5,5.52025]
[1743790782999,11.03768,1812.0,1811.6,5.51977]
[1743790783231,5.51881,1812.0,1811.7,5.51957]
[1743790783423,5.51881,1812.0,1811.7,6.623504]
[1743790783715,5.51921,1811.9,1811.7,1.103934]
[1743790783932,5.51921,1811.9,1811.5,5.5201]
[1743790784334,5.5195,1811.8,1811.4,1.447363]
[1743790784534,5.51906,1811.9,1811.4,0.8139]
[1743790784704,5.51968,1811.7,1811.4,0.8139]
[1743790784903,5.51942,1811.8,1811.4,6.33435]
[1743790785117,5.51987,1811.7,1811.4,0.8139]
[1743790785319,11.38348,1812.1,1811.4,0.8139]
[1743790785637,0.7582,1811.8,1811.3,5.5208]
[1743790785808,5.52026,1811.6,1811.3,5.52079]
[1743790786007,5.51971,1811.7,1811.3,5.52074]
[1743790786208,11.03965,1811.7,1811.3,5.52074]
[1743790786412,5.52,1811.6,1811.2,5.52117]
[1743790786609,5.52077,1811.4,1811.1,0.7674]
[1743790786803,5.52108,1811.3,1810.9,31.1245]
[1743790787016,5.52139,1811.2,1810.9,0.7674]
[1743790787241,0.7582,1811.4,1810.9,6.28932]
[1743790787412,5.52101,1811.3,1810.9,6.28932]
[1743790787736,5.52136,1811.2,1810.9,7.470489]
[1743790787941,5.52091,1811.3,1810.9,7.470669]
[1743790788237,11.04202,1811.3,1810.9,7.470559]
[1743790788425,5.5214,1811.2,1810.9,1.948569]
[1743790788611,11.04287,1811.2,1810.9,1.181169]
[1743790788812,5.52137,1811.2,1810.8,11.04456]
[1743790789066,5.52137,1811.2,1810.9,5.52211]
[1743790789540,6.68619544,1811.4,1810.7,0.7674]
[1743790789843,11.04332,1811.1,1810.7,6.29001]
[1743790790822,5.52181,1811.0,1810.7,0.7674]
[1743790791022,5.52213,1810.9,1810.7,1.94874]
[1743790791218,11.04444,1810.9,1810.5,6.315]
[1743790791422,5.52258,1810.8,1810.5,0.7917]
[1743790791805,5.52213,1810.9,1810.5,6.31485]
[1743790792011,11.04451,1810.9,1810.5,6.31485]
[1743790792239,5.52242,1810.8,1810.5,0.7917]
[1743790792426,5.52242,1810.8,1810.5,1.975592]
[1743790792840,5.52336,1810.5,1810.1,0.9241]
[1743790793136,0.7549,1810.8,1810.2,11.04819]
[1743790793338,5.52297,1810.7,1810.3,5.52392]
[1743790793512,5.52317,1810.6,1810.3,1.10479]
[1743790793712,5.52317,1810.6,1810.2,5.52398]
[1743790793913,5.52345,1810.5,1810.1,0.9241]
[1743790794118,5.52345,1810.5,1810.1,6.44853]
[1743790794524,11.04699,1810.5,1810.1,6.44853]
[1743790794736,5.52345,1810.5,1810.1,2.121421]
[1743790794943,5.52345,1810.5,1810.1,7.645851]
[1743790795653,5.52345,1810.5,1810.1,13.170281]
[1743790796042,5.52306,1810.6,1810.2,5.52414]
[1743790796221,11.04629,1810.6,1810.2,5.52414]
[1743790796420,5.52273,1810.7,1810.3,6.076344]
[1743790796858,11.04567,1810.7,1810.3,6.076344]
[1743790797236,5.52273,1810.7,1810.3,6.076344]
[1743790797574,11.8002719,1810.9,1810.5,6.31084]
[1743790797772,5.52213,1810.9,1810.5,6.31083]
[1743790797923,6.32323,1811.1,1810.7,5.52262]
[1743790798272,5.52152,1811.1,1810.7,5.5227]
[1743790798572,8.864,1811.3,1810.6,6.153973]
[1743790798573,11.04402,1811.0,1810.6,6.153973]
[1743790798728,5.52197,1811.0,1810.6,11.676813]
[1743790798928,11.04398,1811.0,1810.6,6.153923]
[1743790799127,5.52152,1811.1,1810.7,0.6153923]
[1743790799429,5.52121,1811.2,1810.8,6.32044]
[1743790799866,5.52186,1811.0,1810.8,0.7981]
[1743790800265,5.52175,1811.1,1810.8,0.7981]
[1743790800450,5.52192,1811.0,1810.8,0.7981]
[1743790800958,5.52155,1811.1,1810.8,0.7981]
[1743790801127,5.52155,1811.1,1810.8,1.430166]
[1743790801323,5.52094,1811.3,1810.9,5.5772196]
[1743790801623,5.52066,1811.4,1811.0,5.52165]
[1743790801852,5.52066,1811.4,1811.1,0.552165]
[1743790802045,11.04147,1811.4,1811.1,0.552165]
[1743790802248,5.52066,1811.4,1811.1,0.552165]
[1743790802454,5.52033,1811.5,1811.2,5.52119]
[1743790802658,5.51998,1811.6,1810.9,5.52203]
[1743790802870,5.5206,1811.4,1811.0,6.2842]
[1743790803075,5.5206,1811.4,1811.1,5.52147]
[1743790803475,5.5206,1811.4,1811.0,0.7624]
[1743790803476,5.5209,1811.3,1811.0,0.7624]
[1743790803637,5.5206,1811.4,1811.0,6.28398]
[1743790803841,5.5206,1811.4,1811.1,0.628398]
[1743790804037,5.5206,1811.4,1811.0,6.28398]
[1743790804238,5.521,1811.3,1811.0,0.7624]
[1743790804439,5.52163,1811.1,1810.8,1.385666]
[1743790804856,5.52163,1811.1,1810.8,0.7536]
[1743790805063,5.52193,1811.0,1810.6,6.33205]
[1743790805261,11.04394,1811.0,1810.6,6.33205]
[1743790805477,5.52214,1810.9,1810.6,6.33205]
[1743790805674,5.52214,1810.9,1810.6,0.8092]
[1743790805846,5.52247,1810.8,1810.5,5.52328]
[1743790806049,5.52247,1810.8,1810.5,1.11021443]
[1743790806395,5.52298,1810.7,1810.3,1.340514]
[1743790806589,5.52425,1810.2,1810.1,0.1]
[1743790807990,6.35405,1810.2,1810.1,0.1]
[1743790808345,6.77583307,1810.2,1810.1,0.1]
[1743790808655,10.32583307,1810.2,1810.1,0.1]
[1743790810353,5.52645,1809.5,1809.3,0.7624]
[1743790810966,5.52645,1809.5,1809.1,6.42324]
[1743790811164,11.05307,1809.5,1809.1,6.42324]
[1743790811366,5.5268,1809.4,1809.2,0.642324]
[1743790811588,5.5268,1809.4,1809.1,0.8958]
[1743790812182,5.5264,1809.5,1809.1,6.42324]
[1743790812675,11.05299,1809.5,1809.1,6.42324]
[1743790812881,5.5264,1809.5,1809.1,6.42324]
[1743790813179,5.52611,1809.6,1809.1,6.42324]
[1743790813378,5.52611,1809.6,1809.2,5.52719]
[1743790813685,5.52641,1809.5,1809.1,12.593064]
[1743790813983,5.52611,1809.6,1809.2,5.52705]
[1743790814178,11.05241,1809.6,1809.2,5.52705]
[1743790814380,5.52667,1809.5,1809.1,6.42329]
[1743790814685,5.52667,1809.5,1809.2,5.52729]
[1743790814884,5.52661,1809.5,1809.1,7.065619]
[1743790815088,5.5261,1809.6,1809.2,5.5273]
[1743790815382,5.52641,1809.5,1809.1,7.065589]
[1743790815574,5.52641,1809.5,1809.1,6.269789]
[1743790815777,5.52641,1809.5,1809.1,6.269729]
[1743790816287,5.5261,1809.6,1809.2,5.52725]
[1743790816783,5.52524,1809.9,1809.5,5.52638]
[1743790817254,5.52547,1809.8,1809.4,5.52656]
[1743790817455,5.52547,1809.8,1809.4,5.52657]
[1743790817665,5.52525,1809.9,1809.5,5.52636]
[1743790817865,5.52525,1809.9,1809.4,5.52657]
[1743790818178,5.52558,1809.8,1809.4,5.52657]
[1743790818378,5.52606,1809.7,1809.3,6.32079]
[1743790818684,5.52549,1809.8,1809.4,5.52668]
[1743790818890,5.52561,1809.8,1809.4,5.52668]
[1743790819185,5.52547,1809.8,1809.1,0.908]
[1743790819483,5.52639,1809.5,1809.1,0.908]
[1743790819686,11.05304,1809.5,1809.1,6.4356]
[1743790819906,5.52639,1809.5,1809.1,11.96302]
[1743790820106,6.35222,1809.8,1809.4,5.52656]
[1743790820271,8.5252,1809.9,1809.5,6.35821]
[1743790820471,6.35113,1810.1,1809.7,5.52566]
[1743790820674,11.04942,1810.1,1809.7,5.52566]
[1743790820871,5.525,1810.0,1809.6,5.52599]
[1743790821569,5.5252,1809.9,1809.6,5.52606]
[1743790821757,5.525,1810.0,1809.7,5.52576]
[1743790822175,14.47040307,1810.2,1809.8,5.52534]
[1743790822368,5.52398,1810.3,1809.9,6.29645]
[1743790822563,5.52398,1810.3,1810.0,5.52485]
[1743790822780,5.52398,1810.3,1809.9,6.29645]
[1743790822952,5.52398,1810.3,1809.9,11.82147]
[1743790823157,5.52398,1810.3,1809.9,6.29632]
[1743790823981,5.94323568,1810.3,1809.9,11.82132]
[1743790824177,6.28525,1810.4,1810.0,11.04952]
[1743790824375,6.28525,1810.4,1810.0,5.5247]
[1743790824901,11.04822,1810.3,1809.9,7.478552]
[1743790825057,5.52433,1810.2,1809.9,7.478552]
[1743790825492,5.52433,1810.2,1809.9,7.478492]
[1743790825703,5.52406,1810.3,1809.9,13.003542]
[1743790825901,5.52406,1810.3,1809.9,7.478482]
[1743790826077,5.52425,1810.2,1809.9,7.478482]
[1743790826394,11.04828,1810.3,1809.9,13.003482]
[1743790826693,5.52426,1810.2,1809.9,7.478432]
[1743790827074,5.52426,1810.2,1809.9,1.953432]
[1743790827391,5.52426,1810.2,1809.9,0.7713]
[1743790827698,5.52457,1810.1,1809.9,0.7713]
[1743790827996,5.52517,1809.9,1809.7,0.795]
[1743790829003,5.52517,1809.9,1809.5,6.33497]
[1743790829293,6.7352801,1810.3,1809.9,5.52495]
[1743790829494,12.2594001,1810.3,1809.9,5.52495]
[1743790829797,12.2594101,1810.3,1809.9,5.52495]
[1743790830173,6.7352201,1810.3,1809.7,0.8087]
[1743790830379,5.52435,1810.2,1809.9,5.52501]
[1743790830585,1.2112301,1810.3,1809.9,11.05004]
[1743790830586,12.2592901,1810.3,1809.9,11.05004]
[1743790830758,12.2592901,1810.3,1809.9,5.52501]
[1743790830957,5.52427,1810.2,1809.8,5.52542]
[1743790831193,11.04872,1810.2,1809.9,5.52516]
[1743790831490,5.5246,1810.1,1809.8,5.52536]
[1743790831906,0.797,1809.9,1809.5,6.30768]
[1743790832105,5.52564,1809.8,1809.5,0.7813]
[1743790832318,11.26903229,1809.8,1809.5,0.7813]
[1743790833181,5.74333229,1809.8,1809.5,0.7813]
[1743790833386,11.26899229,1809.8,1809.5,0.7813]
[1743790833599,5.52592,1809.7,1809.3,6.34832]
[1743790833800,0.21696966,1809.6,1809.3,6.34832]
[1743790834001,5.52644,1809.5,1809.1,6.44086]
[1743790834213,5.52644,1809.5,1809.1,6.44075]
[1743790834522,0.21696966,1809.4,1809.1,0.1]
[1743790834702,5.5273,1809.2,1809.1,0.1]
[1743790834877,5.52728,1809.3,1809.1,0.1]
[1743790835077,0.21596576,1809.2,1809.1,0.1]
[1743790835402,5.52699,1809.3,1809.1,0.1]
[1743790835600,0.21596576,1809.2,1809.1,0.1]
[1743790835989,11.05367,1809.4,1809.1,0.1]
[1743790836214,0.21596576,1809.3,1809.1,0.1]
[1743790836417,11.05365,1809.4,1809.1,0.1]
[1743790836720,0.21596576,1809.3,1809.1,0.1]
[1743790836915,5.74299576,1809.3,1809.1,0.1]
[1743790837221,0.21596576,1809.2,1809.1,0.1]
[1743790837713,5.74326576,1809.2,1809.1,0.1]
[1743790837920,0.21596576,1809.2,1809.1,0.1]
[1743790838117,0.21596576,1809.2,1809.1,5.62761]
[1743790838296,0.21596576,1809.2,1809.1,0.1]
[1743790838499,5.5267,1809.4,1809.1,0.1]
[1743790839003,0.21379076,1809.3,1809.1,0.1]
[1743790839191,5.5267,1809.4,1809.1,0.1]
[1743790839392,0.21379076,1809.3,1809.1,0.1]
[1743790839607,5.5267,1809.4,1809.1,0.1]
[1743790839808,5.5267,1809.4,1809.1,5.62748]
[1743790839809,0.21379076,1809.3,1809.1,5.62748]
[1743790840014,5.5267,1809.4,1809.1,5.62748]
[1743790840193,0.21379076,1809.3,1809.1,0.1]
[1743790840393,5.5267,1809.4,1809.1,5.62758]
[1743790840605,0.21379076,1809.3,1809.1,0.1]
[1743790840916,5.5267,1809.4,1809.1,0.1]
[1743790841118,5.74109076,1809.2,1809.1,0.1]
[1743790841298,5.52729,1809.3,1809.1,0.1]
[1743790841629,0.21139076,1809.2,1809.1,0.1]
[1743790842508,5.52705,1809.3,1809.1,0.1]
[1743790842674,0.21139076,1809.2,1809.1,0.1]
[1743790843210,5.52674,1809.4,1809.1,0.1]
[1743790843377,5.73848076,1809.3,1809.1,0.1]
[1743790843920,11.26569076,1809.3,1809.1,0.1]
[1743790844407,5.5273,1809.2,1809.1,0.1]
[1743790844795,0.20845918,1809.2,1809.1,0.1]
[1743790844995,5.52708,1809.3,1809.1,0.1]
[1743790845197,0.20845918,1809.2,1809.1,0.1]
[1743790845432,5.73575918,1809.2,1809.1,0.1]
[1743790846103,6.49095918,1809.2,1809.1,0.1]
[1743790848311,0.20845918,1809.2,1809.1,0.1]
[1743790848618,0.20845918,1809.2,1809.1,6.44771]
[1743790848833,11.82368,1809.5,1809.1,11.97532]
[1743790849145,5.5273,1809.2,1809.1,0.1]
[1743790849532,5.52729,1809.3,1809.1,0.1]
[1743790849727,0.18971513,1809.2,1809.1,0.1]
[1743790850631,0.18971513,1809.2,1809.1,5.62761]
[1743790850820,5.5267,1809.4,1809.1,6.743157]
[1743790851021,0.18971513,1809.3,1809.1,5.62761]
[1743790851229,6.2971,1809.5,1809.1,11.15512]
[1743790851401,0.18971513,1809.4,1809.2,5.52728]
[1743790851609,0.18971513,1809.4,1809.2,5.52721]
[1743790851807,5.52552,1809.8,1809.4,5.52657]
[1743790852108,5.71597723,1809.7,1809.4,5.52657]
[1743790852601,0.19019723,1809.7,1809.5,5.52634]
[1743790852805,0.19019723,1809.7,1809.5,6.35103]
[1743790853005,8.52425,1810.2,1809.6,5.52608]
[1743790853006,5.52462,1810.1,1809.6,5.52608]
[1743790853228,0.19019723,1810.0,1809.7,11.05154]
[1743790853430,0.19019723,1810.0,1809.7,5.52577]
[1743790853807,5.71514723,1810.0,1809.6,11.05195]
[1743790854006,11.24019723,1810.0,1809.6,5.52592]
[1743790854229,5.71514723,1810.0,1809.6,11.05188]
[1743790854533,5.71514723,1810.0,1809.7,5.52576]
[1743790854731,6.35859,1809.9,1809.6,5.52592]
[1743790855314,0.19019723,1809.8,1809.6,5.52591]
[1743790855901,5.52519,1809.9,1809.6,5.52591]
[1743790856107,0.19019723,1809.7,1809.6,5.52591]
[1743790856305,6.35799,1810.1,1809.7,5.52558]
[1743790856527,6.35799,1810.1,1809.7,11.05118]
[1743790856727,0.19019723,1810.0,1809.7,5.52558]
[1743790856921,5.52488,1810.0,1809.7,5.52558]
[1743790857203,0.19232581,1809.9,1809.6,6.31313]
[1743790857406,0.19232581,1809.9,1809.6,13.023059]
[1743790857936,0.19232581,1809.9,1809.7,5.52576]
[1743790858300,0.19232581,1809.9,1809.8,5.52547]
[1743790858506,0.8333,1810.1,1809.6,7.497099]
[1743790858816,11.88258,1810.1,1809.7,5.52566]
[1743790859015,0.19232581,1810.0,1809.7,5.52566]
[1743790859230,0.19232581,1810.0,1809.8,5.52532]
[1743790859618,0.19232581,1810.0,1809.9,6.38221263]
[1743790859852,0.7771,1810.5,1810.2,5.52406]
[1743790860021,5.52353,1810.5,1810.1,5.5245]
[1743790860332,5.52353,1810.5,1810.1,11.0489]
[1743790860534,5.52381,1810.4,1810.0,5.52473]
[1743790860735,5.52381,1810.4,1809.9,0.97440171]
[1743790860736,5.52337,1810.5,1810.2,5.52423]
[1743790860958,6.73369645,1810.7,1810.3,5.52378]
[1743790861115,0.7978,1810.7,1810.5,5.52314]
[1743790861321,11.38143,1810.8,1810.5,5.52314]
[1743790861531,5.52297,1810.7,1810.3,5.52375]
[1743790861711,5.52343,1810.5,1810.2,0.7712]
[1743790862311,6.34623,1810.5,1810.1,5.52438]
[1743790862523,0.8228,1810.5,1810.2,5.52398]
[1743790862722,0.8228,1810.5,1810.3,5.52394]
[1743790862931,0.8228,1810.5,1809.9,6.84330171]
[1743790863243,5.52409,1810.3,1809.9,13.65869188]
[1743790863461,11.04825,1810.3,1809.9,6.51036171]
[1743790863747,5.52409,1810.3,1809.9,6.51036171]
[1743790863930,6.35179,1810.1,1809.9,0.17260171]
[1743790864118,3.0,1810.3,1810.0,5.52473]
[1743790864312,5.52387,1810.4,1810.0,5.52473]
[1743790864313,11.04768,1810.4,1810.0,5.52473]
[1743790864511,5.52418,1810.3,1809.9,5.69760171]
[1743790864723,5.52418,1810.3,1810.0,5.52473]
[1743790865122,5.52364,1810.4,1809.9,0.17260171]
[1743790865325,5.52448,1810.2,1809.9,0.17260171]
[1743790865656,5.52374,1810.4,1810.0,5.52466]
[1743790865966,5.52374,1810.4,1810.1,5.5245]
[1743790866132,8.5235,1810.5,1810.1,6.33505]
[1743790866457,6.34268,1810.7,1810.4,5.52363]
[1743790866676,11.37846,1810.8,1810.4,5.52349]
[1743790866819,8.52243,1810.8,1810.5,6.33475]
[1743790867143,6.34096,1810.9,1810.6,5.52301]
[1743790867836,0.8188,1810.9,1810.6,5.523]
[1743790868049,5.52185,1811.0,1810.7,5.52262]
[1743790868415,5.52185,1811.0,1810.6,5.52299]
[1743790868610,5.52212,1810.9,1810.6,5.52299]
[1743790869420,5.52185,1811.0,1810.6,6.708691]
[1743790869621,6.33781,1811.1,1810.7,5.52255]
[1743790869924,11.85949,1811.1,1810.7,5.52255]
[1743790870128,6.33781,1811.1,1810.7,5.52255]
[1743790870559,6.30813,1811.3,1810.9,5.52201]
[1743790870759,11.82922,1811.3,1810.9,6.34236]
[1743790870959,5.52122,1811.2,1810.9,6.34236]
[1743790871165,11.04263,1811.2,1810.9,0.8204]
[1743790871467,11.04263,1811.2,1810.8,5.5223]
[1743790871865,5.52153,1811.1,1810.8,5.5223]
[1743790872085,5.52122,1811.2,1810.8,6.39123035]
[1743790872291,6.30815,1811.3,1810.9,5.52195]
[1743790872499,11.82924,1811.3,1810.9,5.52195]
[1743790872985,6.30815,1811.3,1810.9,5.52195]
[1743790873599,3.7872,1811.3,1810.8,0.86896035]
[1743790873803,9.3082,1811.3,1810.9,5.52194]
[1743790874084,9.3082,1811.3,1811.0,5.52179]
[1743790874286,6.33921,1811.5,1811.2,5.52117]
[1743790874456,5.51965,1811.8,1811.4,5.52045]
[1743790874656,6.43797,1811.9,1811.6,5.51995]
[1743790874860,6.43797,1811.9,1811.7,5.51964]
[1743790874861,0.1,1811.9,1811.7,5.51964]
[1743790875056,0.1,1811.9,1811.7,11.0391]
[1743790875270,0.1,1811.9,1811.8,6.33295974]
[1743790875467,0.1,1811.9,1811.8,6.27777]
[1743790875666,5.61906,1811.9,1811.5,0.7847]
[1743790875867,5.51968,1811.7,1811.5,0.7847]
[1743790876162,5.51968,1811.7,1810.9,6.16643191]
[1743790876163,3.757,1811.6,1810.9,6.29609]
[1743790876386,6.27698,1811.6,1811.1,5.52133]
[1743790876560,5.52035,1811.5,1811.1,0.7742]
[1743790876761,5.52092,1811.3,1810.9,11.818]
[1743790876981,5.52141,1811.2,1810.9,1.956]
[1743790877182,5.52091,1811.3,1810.9,0.7742]
[1743790877392,5.5215,1811.1,1810.9,0.7742]
[1743790877566,5.852,1811.4,1810.6,0.8123]
[1743790877567,0.7739,1811.2,1810.6,0.8123]
[1743790877766,5.52225,1810.9,1810.6,0.8123]
[1743790877982,5.52264,1810.8,1810.3,5.52393]
[1743790878186,5.52291,1810.7,1810.4,0.8123]
[1743790878381,6.29609,1810.9,1810.5,5.52333]
[1743790878894,5.852,1811.0,1810.7,5.52259]
[1743790879065,5.52168,1811.1,1810.8,0.7784]
[1743790879261,5.52122,1811.2,1810.8,6.30076]
[1743790879495,12.1497,1811.3,1810.9,0.05521847]